fUSD/lending_fUSD_20250514
["ID","MTS","AMOUNT","RATE_DAILY","PERIOD"]
[361020869,1747206671070,-400.0,0.0001178,2]
[361020870,1747206671080,-459.74,0.0001178,2]
[361020871,1747206671089,-400.0,0.0001178,2]
[361020872,1747206671099,-2382.22,0.0001178,2]
[361020873,1747206671109,-400.0,0.0001178,2]
[361020874,1747206671119,-552.88,0.0001178,2]
[361020875,1747206671128,-593.33,0.0001178,2]
[361020876,1747206671138,-485.79,0.0001178,2]
[361020877,1747206671148,-400.0,0.0001178,2]
[361020878,1747206671157,-400.0,0.0001178,2]
[361020879,1747206671167,-321.38398416,0.0001178,2]
[361020880,1747206671177,-400.0,0.0001178,2]
[361020881,1747206671187,-400.0,0.0001178,2]
[361020882,1747206671196,-409.38,0.0001178,2]
[361020883,1747206671206,-400.0,0.0001178,2]
[361020884,1747206671215,-714.07,0.0001178,2]
[361020885,1747206671225,-1155.36,0.0001178,2]
[361020886,1747206671234,-400.0,0.0001178,2]
[361020887,1747206671244,-505.3,0.0001178,2]
[361020888,1747206671254,-400.0,0.0001178,2]
[361020889,1747206671267,-558.68,0.0001178,2]
[361020890,1747206671276,-408.88,0.0001178,2]
[361020891,1747206671286,-729.7,0.0001178,2]
[361020892,1747206671296,-865.2590518,0.0001178,2]
[361020893,1747206671314,-193.9409482,0.0001178,2]
[361020894,1747206671324,-400.0,0.0001178,2]
[361020895,1747206671334,-663.53,0.0001178,2]
[361020896,1747206671346,-400.0,0.0001178,2]
[361020897,1747206671355,-1319.91,0.0001178,2]
[361020898,1747206671364,-690.39,0.0001178,2]
[361020899,1747206671374,-657.11,0.0001178,2]
[361020900,1747206671383,-449.59,0.0001178,2]
[361020901,1747206671392,-400.0,0.0001178,2]
[361020902,1747206671401,-2536.44,0.0001178,2]
[361020903,1747206671411,-400.0,0.0001178,2]
[361020904,1747206671420,-288.44747714,0.0001178,2]
[361020905,1747206671429,-400.0,0.0001178,2]
[361020906,1747206671438,-400.0,0.0001178,2]
[361020907,1747206671449,-400.0,0.0001178,2]
[361020908,1747206671458,-400.0,0.0001178,2]
[361020909,1747206671468,-556.9,0.0001178,2]
[361020910,1747206671478,-1226.39,0.0001178,2]
[361020911,1747206671488,-490.55,0.0001178,2]
[361020912,1747206671498,-400.0,0.0001178,2]
[361020913,1747206671508,-416.36,0.0001178,2]
[361020914,1747206671517,-400.0,0.0001178,2]
[361020915,1747206671527,-750.38,0.0001178,2]
[361020916,1747206671536,-400.0,0.0001178,2]
[361020917,1747206671546,-1436.26,0.0001178,2]
[361020918,1747206671555,-175.79962398,0.0001178,2]
[361020919,1747206671565,-400.0,0.0001178,2]
[361020920,1747206671574,-400.0,0.0001178,2]
[361020921,1747206671583,-400.0,0.0001178,2]
[361020922,1747206671593,-400.0,0.0001178,2]
[361020923,1747206671602,-522.1,0.0001178,2]
[361020924,1747206671611,-474.62,0.0001178,2]
[361020925,1747206671621,-400.0,0.0001178,2]
[361020926,1747206671630,-628.44,0.0001178,2]
[361020927,1747206671639,-400.0,0.0001178,2]
[361020928,1747206671649,-1574.26,0.0001178,2]
[361020929,1747206671658,-878.71,0.0001178,2]
[361020930,1747206671667,-400.0,0.0001178,2]
[361020931,1747206671677,-446.95,0.0001178,2]
[361020932,1747206671686,-402.16,0.0001178,2]
[361020933,1747206671695,-1333.87,0.0001178,2]
[361020934,1747206671705,-400.0,0.0001178,2]
[361020935,1747206671714,-400.0,0.0001178,2]
[361020936,1747206671906,-669.09,0.0001178,2]
[361020937,1747206671917,-782.19,0.0001178,2]
[361020938,1747206671928,-1165.88,0.0001178,2]
[361020939,1747206671938,-1555.28,0.0001178,2]
[361020940,1747206671947,-400.0,0.0001178,2]
[361020941,1747206671957,-874.97,0.0001178,2]
[361020942,1747206671967,-400.0,0.0001178,2]
[361020943,1747206671977,-1234.4,0.0001178,2]
[361020944,1747206671987,-400.0,0.0001178,2]
[361020945,1747206671996,-1839.29,0.0001178,2]
[361020946,1747206672006,-400.0,0.0001178,2]
[361020947,1747206672016,-400.0,0.0001178,2]
[361020948,1747206672027,-400.0,0.0001178,2]
[361020949,1747206672037,-683.75,0.0001178,2]
[361020950,1747206672046,-1559.40585068,0.0001178,2]
[361020951,1747206672537,-408.4,0.00011506,2]
[361020952,1747206672547,-292.43481108,0.0001178,2]
[361020953,1747206672572,-217.11933824,0.0001178,2]
[361020954,1747206672582,-195.32604136,0.0001178,2]
[361020955,1747206672592,-104.9436204,0.0001178,2]
[361020956,1747206672608,-2044.7663796,0.0001178,2]
[361020957,1747206672618,-718.47,0.0001178,2]
[361020958,1747206672627,-400.0,0.0001178,2]
[361020959,1747206672636,-1053.32,0.0001178,2]
[361020960,1747206672646,-662.22,0.0001178,2]
[361020961,1747206672655,-400.0,0.0001178,2]
[361020962,1747206672665,-400.0,0.0001178,2]
[361020963,1747206672675,-662.21,0.0001178,2]
[361020964,1747206672685,-400.0,0.0001178,2]
[361020965,1747206672694,-634.45,0.0001178,2]
[361020966,1747206672704,-458.07,0.0001178,2]
[361020967,1747206672713,-1985.62,0.0001178,2]
[361020968,1747206672724,-400.0,0.0001178,2]
[361020969,1747206672733,-2793.55,0.0001178,2]
[361020970,1747206672743,-506.5,0.0001178,2]
[361020971,1747206672753,-400.0,0.0001178,2]
[361020972,1747206672763,-400.0,0.0001178,2]
[361020973,1747206672772,-562.53,0.0001178,2]
[361020974,1747206672782,-589.74,0.0001178,2]
[361020975,1747206672792,-277.36849724,0.0001178,2]
[361020976,1747206672802,-400.0,0.0001178,2]
[361020977,1747206672813,-400.0,0.0001178,2]
[361020978,1747206672823,-1128.03,0.0001178,2]
[361020979,1747206672833,-450.23,0.0001178,2]
[361020980,1747206672847,-400.0,0.0001178,2]
[361020981,1747206672869,-441.4,0.0001178,2]
[361020982,1747206672887,-445.34,0.0001178,2]
[361020983,1747206672907,-1564.06,0.0001178,2]
[361020984,1747206672925,-503.55053284,0.0001178,2]
[361020985,1747206672943,-1415.89,0.0001178,2]
[361020986,1747206672963,-400.0,0.0001178,2]
[361020987,1747206672982,-1466.38,0.0001178,2]
[361020988,1747206673001,-1364.13,0.0001178,2]
[361020989,1747206673019,-400.0,0.0001178,2]
[361020990,1747206673038,-233.86087955,0.0001178,2]
[361020991,1747206673054,-2839.08,0.0001178,2]
[361020992,1747206673074,-400.0,0.0001178,2]
[361020993,1747206673087,-400.0,0.0001178,2]
[361020994,1747206673105,-1563.23,0.0001178,2]
[361020995,1747206673119,-400.0,0.0001178,2]
[361020996,1747206673139,-453.86,0.0001178,2]
[361020997,1747206673155,-400.0,0.0001178,2]
[361020998,1747206673171,-400.0,0.0001178,2]
[361020999,1747206673186,-627.19,0.0001178,2]
[361021000,1747206673201,-1603.87,0.0001178,2]
[361021001,1747206673217,-400.0,0.0001178,2]
[361021002,1747206673234,-856.07,0.0001178,2]
[361021003,1747206673250,-400.0,0.0001178,2]
[361021004,1747206673268,-400.0,0.0001178,2]
[361021005,1747206673284,-400.0,0.0001178,2]
[361021006,1747206673299,-745.81,0.0001178,2]
[361021007,1747206673315,-162.3361515,0.0001178,2]
[361021008,1747206673330,-230.75462961,0.0001178,2]
[361021009,1747206673346,-400.0,0.0001178,2]
[361021010,1747206673362,-760.93,0.0001178,2]
[361021011,1747206673377,-493.42,0.0001178,2]
[361021012,1747206673392,-841.04,0.0001178,2]
[361021013,1747206673408,-476.08,0.0001178,2]
[361021014,1747206673423,-388.53644108,0.0001178,2]
[361021015,1747206673439,-400.0,0.0001178,2]
[361021016,1747206673454,-400.0,0.0001178,2]
[361021017,1747206673469,-400.0,0.0001178,2]
[361021018,1747206673483,-519.0,0.0001178,2]
[361021019,1747206673498,-400.0,0.0001178,2]
[361021020,1747206673513,-400.0,0.0001178,2]
[361021021,1747206673529,-400.0,0.0001178,2]
[361021022,1747206673544,-400.0,0.0001178,2]
[361021023,1747206673560,-1414.66,0.0001178,2]
[361021024,1747206673575,-400.0,0.0001178,2]
[361021025,1747206673590,-462.98,0.0001178,2]
[361021026,1747206673605,-505.82,0.0001178,2]
[361021027,1747206673620,-1176.61,0.0001178,2]
[361021028,1747206673635,-427.64,0.0001178,2]
[361021029,1747206673649,-400.0,0.0001178,2]
[361021030,1747206673664,-1227.25,0.0001178,2]
[361021031,1747206673679,-400.0,0.0001178,2]
[361021032,1747206673694,-511.43,0.0001178,2]
[361021033,1747206673709,-400.0,0.0001178,2]
[361021034,1747206673724,-400.0,0.0001178,2]
[361021035,1747206673739,-495.63,0.0001178,2]
[361021036,1747206673754,-420.32,0.0001178,2]
[361021037,1747206673768,-400.0,0.0001178,2]
[361021038,1747206673784,-400.0,0.0001178,2]
[361021039,1747206673799,-400.0,0.0001178,2]
[361021040,1747206673816,-823.04,0.0001178,2]
[361021041,1747206673831,-400.0,0.0001178,2]
[361021042,1747206673846,-400.0,0.0001178,2]
[361021043,1747206673862,-400.0,0.0001178,2]
[361021044,1747206673879,-400.0,0.0001178,2]
[361021045,1747206673894,-659.45,0.0001178,2]
[361021046,1747206673909,-606.33,0.0001178,2]
[361021047,1747206673924,-717.5,0.0001178,2]
[361021048,1747206673939,-400.0,0.0001178,2]
[361021049,1747206673955,-714.75,0.0001178,2]
[361021050,1747206673970,-400.0,0.0001178,2]
[361021051,1747206673985,-462.06,0.0001178,2]
[361021052,1747206674001,-1347.57,0.0001178,2]
[361021053,1747206674017,-400.0,0.0001178,2]
[361021054,1747206674029,-422.76,0.0001178,2]
[361021055,1747206674039,-400.0,0.0001178,2]
[361021056,1747206674048,-441.49,0.0001178,2]
[361021057,1747206674058,-645.71,0.0001178,2]
[361021058,1747206674068,-745.42,0.0001178,2]
[361021059,1747206674078,-969.06,0.0001178,2]
[361021060,1747206674087,-400.0,0.0001178,2]
[361021061,1747206674097,-739.53,0.0001178,2]
[361021062,1747206674107,-400.0,0.0001178,2]
[361021063,1747206674116,-400.0,0.0001178,2]
[361021064,1747206674126,-1417.56,0.0001178,2]
[361021065,1747206674135,-3382.12,0.0001178,2]
[361021066,1747206674146,-476.29,0.0001178,2]
[361021067,1747206674155,-400.0,0.0001178,2]
[361021068,1747206674165,-905.18,0.0001178,2]
[361021069,1747206674175,-494.2,0.0001178,2]
[361021070,1747206674185,-400.0,0.0001178,2]
[361021071,1747206674195,-730.63,0.0001178,2]
[361021072,1747206674205,-400.0,0.0001178,2]
[361021073,1747206674215,-411.40802873,0.0001178,2]
[361021074,1747206674224,-530.57,0.0001178,2]
[361021075,1747206674234,-758.37,0.0001178,2]
[361021076,1747206674243,-1295.55,0.0001178,2]
[361021077,1747206674253,-400.0,0.0001178,2]
[361021078,1747206674264,-1266.69,0.0001178,2]
[361021079,1747206674278,-621.19,0.0001178,2]
[361021080,1747206674287,-784.77,0.0001178,2]
[361021081,1747206674297,-603.14,0.0001178,2]
[361021082,1747206674306,-400.0,0.0001178,2]
[361021083,1747206674316,-2380.46,0.0001178,2]
[361021084,1747206674326,-400.0,0.0001178,2]
[361021085,1747206674335,-407.32,0.0001178,2]
[361021086,1747206674346,-400.0,0.0001178,2]
[361021087,1747206674356,-400.0,0.0001178,2]
[361021088,1747206674366,-462.42,0.0001178,2]
[361021089,1747206674375,-689.84,0.0001178,2]
[361021090,1747206674385,-400.0,0.0001178,2]
[361021091,1747206674824,-400.0,0.0001178,2]
[361021092,1747206674863,-4405.27,0.0001178,2]
[361021093,1747206674888,-400.0,0.0001178,2]
[361021094,1747206674901,-400.0,0.0001178,2]
[361021095,1747206674911,-1115.59,0.0001178,2]
[361021096,1747206674921,-429.19,0.0001178,2]
[361021097,1747206674933,-1025.26,0.0001178,2]
[361021098,1747206674943,-400.0,0.0001178,2]
[361021099,1747206674953,-400.0,0.0001178,2]
[361021100,1747206674963,-239.79636316,0.0001178,2]
[361021101,1747206674973,-400.0,0.0001178,2]
[361021102,1747206674983,-737.55,0.0001178,2]
[361021103,1747206674992,-481.79,0.0001178,2]
[361021104,1747206675002,-489.93,0.0001178,2]
[361021105,1747206675011,-400.0,0.0001178,2]
[361021106,1747206675021,-400.0,0.0001178,2]
[361021107,1747206675031,-400.0,0.0001178,2]
[361021108,1747206675040,-854.76,0.0001178,2]
[361021109,1747206675050,-426.26,0.0001178,2]
[361021110,1747206675059,-400.0,0.0001178,2]
[361021111,1747206675069,-546.36,0.0001178,2]
[361021112,1747206675079,-405.09,0.0001178,2]
[361021113,1747206675089,-168.42120494,0.0001178,2]
[361021114,1747206675099,-318.93163337,0.0001178,2]
[361021115,1747206675109,-414.32,0.0001178,2]
[361021116,1747206675118,-400.0,0.0001178,2]
[361021117,1747206675128,-431.03770699,0.0001178,2]
[361021118,1747206675138,-400.0,0.0001178,2]
[361021119,1747206675148,-400.0,0.0001178,2]
[361021120,1747206675157,-400.0,0.0001178,2]
[361021121,1747206675166,-400.0,0.0001178,2]
[361021122,1747206675176,-400.0,0.0001178,2]
[361021123,1747206675186,-414.71,0.0001178,2]
[361021124,1747206675195,-400.0,0.0001178,2]
[361021125,1747206675205,-400.0,0.0001178,2]
[361021126,1747206675215,-418.28,0.0001178,2]
[361021127,1747206675225,-400.0,0.0001178,2]
[361021128,1747206675234,-511.93770544,0.0001178,2]
[361021129,1747206675244,-875.11,0.0001178,2]
[361021130,1747206675253,-400.0,0.0001178,2]
[361021131,1747206675263,-400.0,0.0001178,2]
[361021132,1747206675275,-400.0,0.0001178,2]
[361021133,1747206675285,-400.0,0.0001178,2]
[361021134,1747206675295,-400.0,0.0001178,2]
[361021135,1747206675305,-428.81,0.0001178,2]
[361021136,1747206675317,-583.19,0.0001178,2]
[361021137,1747206675327,-400.0,0.0001178,2]
[361021138,1747206675336,-1008.4,0.0001178,2]
[361021139,1747206675348,-412.13778711,0.0001178,2]
[361021140,1747206675358,-400.0,0.0001178,2]
[361021141,1747206675367,-1406.85,0.0001178,2]
[361021142,1747206675377,-400.0,0.0001178,2]
[361021143,1747206675386,-400.0,0.0001178,2]
[361021144,1747206675395,-643.55,0.0001178,2]
[361021145,1747206675405,-646.08,0.0001178,2]
[361021146,1747206675414,-400.0,0.0001178,2]
[361021147,1747206675425,-421.39,0.0001178,2]
[361021148,1747206675434,-400.0,0.0001178,2]
[361021149,1747206675443,-400.0,0.0001178,2]
[361021150,1747206675452,-400.0,0.0001178,2]
[361021151,1747206675462,-400.0,0.0001178,2]
[361021152,1747206675472,-2791.29,0.0001178,2]
[361021153,1747206675482,-400.0,0.0001178,2]
[361021154,1747206675491,-400.0,0.0001178,2]
[361021155,1747206675502,-1587.96,0.0001178,2]
[361021156,1747206675511,-400.0,0.0001178,2]
[361021157,1747206675520,-400.0,0.0001178,2]
[361021158,1747206675530,-400.0,0.0001178,2]
[361021159,1747206675539,-1061.47,0.0001178,2]
[361021160,1747206675548,-596.73,0.0001178,2]
[361021161,1747206675558,-400.0,0.0001178,2]
[361021162,1747206675567,-1156.0,0.0001178,2]
[361021163,1747206675576,-1381.79,0.0001178,2]
[361021164,1747206675587,-400.0,0.0001178,2]
[361021165,1747206675596,-400.0,0.0001178,2]
[361021166,1747206675607,-400.0,0.0001178,2]
[361021167,1747206675616,-400.0,0.0001178,2]
[361021168,1747206675625,-400.0,0.0001178,2]
[361021169,1747206675635,-400.0,0.0001178,2]
[361021170,1747206675646,-400.0,0.0001178,2]
[361021171,1747206675656,-742.4,0.0001178,2]
[361021172,1747206675665,-400.0,0.0001178,2]
[361021173,1747206675676,-3079.93,0.0001178,2]
[361021174,1747206675685,-400.0,0.0001178,2]
[361021175,1747206675694,-432.87,0.0001178,2]
[361021176,1747206675704,-1187.75,0.0001178,2]
[361021177,1747206675713,-664.45,0.0001178,2]
[361021178,1747206675722,-400.0,0.0001178,2]
[361021179,1747206675731,-400.0,0.0001178,2]
[361021180,1747206675741,-400.0,0.0001178,2]
[361021181,1747206675750,-510.8,0.0001178,2]
[361021182,1747206675759,-784.08,0.0001178,2]
[361021183,1747206675769,-1143.22,0.0001178,2]
[361021184,1747206675778,-1392.97,0.0001178,2]
[361021185,1747206675787,-400.0,0.0001178,2]
[361021186,1747206675796,-400.0,0.0001178,2]
[361021187,1747206675806,-400.0,0.0001178,2]
[361021188,1747206675815,-400.0,0.0001178,2]
[361021189,1747206675825,-493.63,0.0001178,2]
[361021190,1747206675834,-400.0,0.0001178,2]
[361021191,1747206675844,-1657.94,0.0001178,2]
[361021192,1747206675853,-752.99,0.0001178,2]
[361021193,1747206675864,-5186.22,0.0001178,2]
[361021194,1747206675874,-530.66,0.0001178,2]
[361021195,1747206675883,-804.99,0.0001178,2]
[361021196,1747206675893,-400.0,0.0001178,2]
[361021197,1747206675903,-400.0,0.0001178,2]
[361021198,1747206675912,-400.0,0.0001178,2]
[361021199,1747206675921,-400.0,0.0001178,2]
[361021200,1747206675932,-517.39,0.0001178,2]
[361021201,1747206675942,-400.0,0.0001178,2]
[361021202,1747206675951,-400.0,0.0001178,2]
[361021203,1747206675961,-400.0,0.0001178,2]
[361021204,1747206675970,-400.0,0.0001178,2]
[361021205,1747206675980,-1194.64,0.0001178,2]
[361021206,1747206675990,-400.0,0.0001178,2]
[361021207,1747206676001,-400.0,0.0001178,2]
[361021208,1747206676011,-876.54,0.0001178,2]
[361021209,1747206676021,-400.0,0.0001178,2]
[361021210,1747206676031,-400.0,0.0001178,2]
[361021211,1747206676041,-400.0,0.0001178,2]
[361021212,1747206676051,-400.0,0.0001178,2]
[361021213,1747206676061,-1000.0,0.0001178,2]
[361021214,1747206676071,-6912.7,0.0001178,2]
[361021215,1747206676081,-1000.0,0.0001178,2]
[361021216,1747206676090,-400.0,0.0001178,2]
[361021217,1747206676100,-400.0,0.0001178,2]
[361021218,1747206676110,-2578.29,0.0001178,2]
[361021219,1747206676120,-400.0,0.0001178,2]
[361021220,1747206676129,-1005.65,0.0001178,2]
[361021221,1747206676139,-400.0,0.0001178,2]
[361021222,1747206676148,-453.68,0.0001178,2]
[361021223,1747206676158,-400.0,0.0001178,2]
[361021224,1747206676167,-400.0,0.0001178,2]
[361021225,1747206676177,-539.9,0.0001178,2]
[361021226,1747206676189,-400.0,0.0001178,2]
[361021227,1747206676199,-421.06,0.0001178,2]
[361021228,1747206676208,-400.0,0.0001178,2]
[361021229,1747206676218,-931.78,0.0001178,2]
[361021230,1747206676228,-400.0,0.0001178,2]
[361021231,1747206676238,-448.75,0.0001178,2]
[361021232,1747206676248,-546.83,0.0001178,2]
[361021233,1747206676258,-1046.39,0.0001178,2]
[361021234,1747206676270,-400.0,0.0001178,2]
[361021235,1747206676279,-400.0,0.0001178,2]
[361021236,1747206676289,-3025.22,0.0001178,2]
[361021237,1747206676298,-403.75,0.0001178,2]
[361021238,1747206676307,-400.0,0.0001178,2]
[361021239,1747206676318,-400.0,0.0001178,2]
[361021240,1747206676327,-849.98,0.0001178,2]
[361021241,1747206676337,-400.0,0.0001178,2]
[361021242,1747206676346,-400.0,0.0001178,2]
[361021243,1747206676356,-1803.74,0.0001178,2]
[361021244,1747206676366,-692.61,0.0001178,2]
[361021245,1747206676376,-8013.87,0.0001178,2]
[361021246,1747206676385,-400.0,0.0001178,2]
[361021247,1747206676395,-400.0,0.0001178,2]
[361021248,1747206676406,-400.0,0.0001178,2]
[361021249,1747206676415,-400.0,0.0001178,2]
[361021250,1747206676424,-898.82,0.0001178,2]
[361021251,1747206676435,-1494.8,0.0001178,2]
[361021252,1747206676445,-400.0,0.0001178,2]
[361021253,1747206676454,-400.0,0.0001178,2]
[361021254,1747206676464,-853.96,0.0001178,2]
[361021255,1747206676473,-400.0,0.0001178,2]
[361021256,1747206676482,-513.18,0.0001178,2]
[361021257,1747206676492,-5859.25,0.0001178,2]
[361021258,1747206676501,-594.76,0.0001178,2]
[361021259,1747206676511,-400.0,0.0001178,2]
[361021260,1747206676520,-400.0,0.0001178,2]
[361021261,1747206676529,-696.11,0.0001178,2]
[361021262,1747206676540,-400.0,0.0001178,2]
[361021263,1747206676550,-522.8,0.0001178,2]
[361021264,1747206676559,-400.0,0.0001178,2]
[361021265,1747206676570,-1327.64,0.0001178,2]
[361021266,1747206676580,-400.0,0.0001178,2]
[361021267,1747206676589,-1151.65,0.0001178,2]
[361021268,1747206676599,-400.0,0.0001178,2]
[361021269,1747206676608,-4885.58,0.0001178,2]
[361021270,1747206676618,-1150.89,0.0001178,2]
[361021271,1747206676627,-1020.92,0.0001178,2]
[361021272,1747206676637,-712.79,0.0001178,2]
[361021273,1747206676647,-288.09473949,0.0001178,2]
[361021274,1747206676657,-400.0,0.0001178,2]
[361021275,1747206676666,-400.0,0.0001178,2]
[361021276,1747206676680,-1741.04,0.0001178,2]
[361021277,1747206676689,-456.60902042,0.0001178,2]
[361021278,1747206676699,-551.64,0.0001178,2]
[361021279,1747206676709,-9487.06,0.0001178,2]
[361021280,1747206676718,-526.9,0.0001178,2]
[361021281,1747206676727,-400.0,0.0001178,2]
[361021282,1747206676737,-400.0,0.0001178,2]
[361021283,1747206676746,-687.0,0.0001178,2]
[361021284,1747206676756,-400.0,0.0001178,2]
[361021285,1747206676765,-400.0,0.0001178,2]
[361021286,1747206676775,-1069.78,0.0001178,2]
[361021287,1747206676784,-430.52,0.0001178,2]
[361021288,1747206676794,-400.0,0.0001178,2]
[361021289,1747206676803,-400.0,0.0001178,2]
[361021290,1747206676813,-400.0,0.0001178,2]
[361021291,1747206676822,-407.58,0.0001178,2]
[361021292,1747206676834,-400.0,0.0001178,2]
[361021293,1747206676844,-400.0,0.0001178,2]
[361021294,1747206676853,-1249.16,0.0001178,2]
[361021295,1747206676863,-705.33,0.0001178,2]
[361021296,1747206676873,-1047.53,0.0001178,2]
[361021297,1747206676882,-1319.82,0.0001178,2]
[361021298,1747206676892,-2095.29,0.0001178,2]
[361021299,1747206676902,-400.0,0.0001178,2]
[361021300,1747206676911,-468.56,0.0001178,2]
[361021301,1747206676920,-400.0,0.0001178,2]
[361021302,1747206676930,-1428.57,0.0001178,2]
[361021303,1747206676940,-636.96,0.0001178,2]
[361021304,1747206676949,-400.0,0.0001178,2]
[361021305,1747206676958,-416.3,0.0001178,2]
[361021306,1747206676972,-400.0,0.0001178,2]
[361021307,1747206676981,-1127.51,0.0001178,2]
[361021308,1747206676991,-1060.15,0.0001178,2]
[361021309,1747206677001,-709.99,0.0001178,2]
[361021310,1747206677010,-737.32,0.0001178,2]
[361021311,1747206677019,-400.0,0.0001178,2]
[361021312,1747206677028,-1551.6,0.0001178,2]
[361021313,1747206677038,-10260.55,0.0001178,2]
[361021314,1747206677047,-409.28096954,0.0001178,2]
[361021315,1747206677056,-400.0,0.0001178,2]
[361021316,1747206677066,-715.04,0.0001178,2]
[361021317,1747206677076,-400.0,0.0001178,2]
[361021318,1747206677086,-1225.02,0.0001178,2]
[361021319,1747206677095,-400.0,0.0001178,2]
[361021320,1747206677104,-400.0,0.0001178,2]
[361021321,1747206677114,-413.07,0.0001178,2]
[361021322,1747206677123,-4827.08,0.0001178,2]
[361021323,1747206677132,-400.0,0.0001178,2]
[361021324,1747206677141,-1124.78,0.0001178,2]
[361021325,1747206677151,-400.0,0.0001178,2]
[361021326,1747206677160,-400.0,0.0001178,2]
[361021327,1747206677170,-400.0,0.0001178,2]
[361021328,1747206677179,-400.0,0.0001178,2]
[361021329,1747206677188,-400.0,0.0001178,2]
[361021330,1747206677197,-1126.87,0.0001178,2]
[361021331,1747206677207,-1470.88,0.0001178,2]
[361021332,1747206677216,-1612.02,0.0001178,2]
[361021333,1747206677225,-400.0,0.0001178,2]
[361021334,1747206677234,-400.0,0.0001178,2]
[361021335,1747206677243,-456.75,0.0001178,2]
[361021336,1747206677253,-400.0,0.0001178,2]
[361021337,1747206677265,-400.0,0.0001178,2]
[361021338,1747206677275,-400.0,0.0001178,2]
[361021339,1747206677283,-400.0,0.0001178,2]
[361021340,1747206677290,-2756.49,0.0001178,2]
[361021341,1747206677298,-400.0,0.0001178,2]
[361021342,1747206677308,-400.0,0.0001178,2]
[361021343,1747206677317,-3363.5,0.0001178,2]
[361021344,1747206677326,-494.99,0.0001178,2]
[361021345,1747206677337,-439.11,0.0001178,2]
[361021346,1747206677346,-400.0,0.0001178,2]
[361021347,1747206677356,-4234.3,0.0001178,2]
[361021348,1747206677365,-400.0,0.0001178,2]
[361021349,1747206677374,-1431.45,0.0001178,2]
[361021350,1747206677383,-439.95,0.0001178,2]
[361021351,1747206677392,-1402.78,0.0001178,2]
[361021352,1747206677401,-400.0,0.0001178,2]
[361021353,1747206677411,-2162.91,0.0001178,2]
[361021354,1747206677420,-2108.67,0.0001178,2]
[361021355,1747206677430,-400.0,0.0001178,2]
[361021356,1747206677439,-400.0,0.0001178,2]
[361021357,1747206677448,-5734.62,0.0001178,2]
[361021358,1747206677457,-424.67,0.0001178,2]
[361021359,1747206677467,-392.29792154,0.0001178,2]
[361021360,1747206677476,-400.0,0.0001178,2]
[361021361,1747206677485,-400.0,0.0001178,2]
[361021362,1747206677494,-999.5,0.0001178,2]
[361021363,1747206677503,-400.0,0.0001178,2]
[361021364,1747206677513,-848.71,0.0001178,2]
[361021365,1747206677523,-1265.55,0.0001178,2]
[361021366,1747206677532,-400.0,0.0001178,2]
[361021367,1747206677542,-400.0,0.0001178,2]
[361021368,1747206677551,-608.01,0.0001178,2]